[Event "Polofinale MCR junioru 2023"]
[Site "Czech Republic"]
[Date "2023.11.14"]
[Round "4.38"]
[White "Striz, Tadeas"]
[Black "Stejskal, Michal"]
[Result "0-1"]
[TimeControl "90 min per 40 moves + 15 min + 30 sec / move from move 1"]
[WhiteFideId "23723530"]
[BlackFideId "398195"]
[WhiteElo "1371"]
[BlackElo "1872"]

1. e4 {[%clk 01:30:27]} {[%emt 00:00:32]} e6 {[%clk 01:30:48]} {[%emt
00:00:13]} 2. d3 {[%clk 01:30:51]} {[%emt 00:00:05]} d5 {[%clk 01:31:13]}
{[%emt 00:00:05]} 3. Nd2 {[%clk 01:31:18]} Nf6 {[%clk 01:31:27]} {[%emt
00:00:19]} 4. Ngf3 {[%clk 01:31:39]} Nc6 {[%clk 01:31:50]} {[%emt 00:00:16]} 5.
g3 {[%clk 01:31:56]} {[%emt 00:00:13]} Bc5 {[%clk 01:32:10]} {[%emt 00:00:10]}
6. Bg2 {[%clk 01:31:34]} {[%emt 00:00:53]} dxe4 {[%clk 01:32:33]} {[%emt
00:00:07]} 7. dxe4 {[%clk 01:31:24]} {[%emt 00:00:40]} e5 {[%clk 01:32:57]}
{[%emt 00:00:06]} 8. O-O {[%clk 01:31:05]} {[%emt 00:00:48]} O-O {[%clk
01:33:19]} {[%emt 00:00:07]} 9. c3 {[%clk 01:28:12]} {[%emt 00:03:24]} a5
{[%clk 01:33:44]} {[%emt 00:00:06]} 10. Qe2 {[%clk 01:27:28]} {[%emt 00:01:13]}
Qe7 {[%clk 01:33:45]} {[%emt 00:00:28]} 11. a4 {[%clk 01:25:03]} {[%emt
00:02:56]} b6 {[%clk 01:33:45]} {[%emt 00:00:32]} 12. Nb3 {[%clk 01:13:36]}
{[%emt 00:11:56]} Ba6 {[%clk 01:32:15]} {[%emt 00:01:59]} 13. c4 {[%clk
01:13:10]} {[%emt 00:00:57]} Bd6 {[%clk 01:31:06]} {[%emt 00:01:38]} 14. Nh4
{[%clk 01:04:17]} {[%emt 00:09:22]} Qe6 {[%clk 01:30:36]} {[%emt 00:01:01]} 15.
Nd2 {[%clk 01:03:10]} {[%emt 00:01:37]} Nd4 {[%clk 01:30:58]} {[%emt 00:00:08]}
16. Qd3 {[%clk 01:01:54]} {[%emt 00:01:45]} Rad8 {[%clk 01:24:34]} {[%emt
00:06:55]} 17. f4 {[%clk 00:59:57]} {[%emt 00:02:27]} Nc6 {[%clk 01:17:37]}
{[%emt 00:07:28]} 18. Qe2 {[%clk 00:54:14]} {[%emt 00:06:12]} Bc5+ {[%clk
01:13:43]} {[%emt 00:04:25]} 19. Kh1 {[%clk 00:53:00]} {[%emt 00:01:44]} exf4
{[%clk 01:10:24]} {[%emt 00:03:49]} 20. Rxf4 {[%clk 00:49:34]} {[%emt
00:03:55]} Ne5 {[%clk 01:04:39]} {[%emt 00:06:15]} 21. Bf1 {[%clk 00:45:18]}
{[%emt 00:04:47]} Nd3 {[%clk 01:01:51]} {[%emt 00:03:19]} 22. Rf3 {[%clk
00:44:48]} {[%emt 00:01:00]} Bb7 {[%clk 00:59:50]} {[%emt 00:02:32]} 23. Rxf6
{[%clk 00:38:03]} {[%emt 00:07:14]} Qxf6 {[%clk 01:00:03]} {[%emt 00:00:17]} 24.
Nf5 {[%clk 00:37:48]} {[%emt 00:00:45]} Qxf5 {[%clk 01:00:25]} {[%emt
00:00:09]} 0-1

[Event "Polofinale MCR junioru 2023"]
[Site "Czech Republic"]
[Date "2023.11.14"]
[Round "4.39"]
[White "Sklar, Petr"]
[Black "Mydlar, Matej"]
[Result "0-1"]
[TimeControl "90 min per 40 moves + 15 min + 30 sec / move from move 1"]
[WhiteFideId "23731141"]
[BlackFideId "23735074"]
[WhiteElo "1160"]
[BlackElo "1809"]

1. f4 {[%clk 01:30:54]} {[%emt 00:00:06]} c5 {[%clk 01:30:27]} {[%emt
00:00:33]} 2. e4 {[%clk 01:30:49]} {[%emt 00:00:34]} d6 {[%clk 01:30:52]}
{[%emt 00:00:06]} 3. Bb5+ {[%clk 01:30:34]} {[%emt 00:00:45]} Nc6 {[%clk
01:30:22]} {[%emt 00:01:00]} 4. Nf3 {[%clk 01:30:28]} {[%emt 00:00:36]} Nf6
{[%clk 01:29:46]} {[%emt 00:01:07]} 5. d3 {[%clk 01:28:15]} g6 {[%clk
01:28:20]} {[%emt 00:04:37]} 6. O-O {[%clk 01:26:25]} Bg7 {[%clk 01:28:28]}
{[%emt 00:02:42]} 7. Nc3 {[%clk 01:23:51]} O-O {[%clk 01:28:32]} {[%emt
00:03:30]} 8. Bxc6 {[%clk 01:23:33]} bxc6 {[%clk 01:28:53]} {[%emt 00:00:58]} 9.
Be3 {[%clk 01:16:59]} Ng4 {[%clk 01:28:17]} {[%emt 00:08:09]} 10. Qd2 {[%clk
01:15:27]} Nxe3 {[%clk 01:24:01]} {[%emt 00:06:49]} 11. Qxe3 {[%clk 01:14:56]}
Qb6 {[%clk 01:23:55]} {[%emt 00:01:37]} 12. Rab1 {[%clk 01:13:27]} Bd4 {[%clk
01:24:15]} {[%emt 00:02:08]} 13. Nxd4 cxd4 14. Qg3 {[%clk 01:13:00]} {[%emt
00:00:39]} dxc3+ {[%clk 01:25:03]} {[%emt 00:00:07]} 15. Kh1 {[%clk 01:13:14]}
cxb2 {[%clk 01:24:25]} {[%emt 00:01:24]} 16. h4 {[%clk 01:13:31]} Qd4 {[%clk
01:24:21]} {[%emt 00:00:47]} 17. h5 {[%clk 01:12:52]} Rb8 {[%clk 01:23:51]}
{[%emt 00:02:09]} 18. f5 {[%clk 01:12:06]} {[%emt 00:01:16]} Qg7 {[%clk
01:23:56]} {[%emt 00:00:26]} 19. f6 {[%clk 01:11:08]} {[%emt 00:01:28]} exf6
{[%clk 01:24:12]} {[%emt 00:00:13]} 20. Qxd6 {[%clk 01:11:12]} {[%emt
00:00:27]} Be6 {[%clk 01:24:35]} {[%emt 00:00:07]} 21. hxg6 {[%clk 01:10:41]}
{[%emt 00:01:01]} hxg6 {[%clk 01:24:48]} {[%emt 00:00:16]} 22. Qxc6 {[%clk
01:10:12]} {[%emt 00:00:59]} Bxa2 {[%clk 01:25:12]} {[%emt 00:00:06]} 23. c4
{[%clk 01:10:00]} {[%emt 00:00:41]} Bxb1 {[%clk 01:25:34]} {[%emt 00:00:08]} 24.
Rxb1 {[%clk 01:10:17]} {[%emt 00:00:14]} Qh6+ {[%clk 01:25:59]} {[%emt
00:00:05]} 25. Kg1 {[%clk 01:10:29]} {[%emt 00:00:18]} Qe3+ {[%clk 01:26:24]}
{[%emt 00:00:05]} 26. Kh2 {[%clk 01:10:32]} {[%emt 00:00:26]} Qxd3 {[%clk
01:26:47]} {[%emt 00:00:07]} 0-1

[Event "Polofinale MCR junioru 2023"]
[Site "Czech Republic"]
[Date "2023.11.14"]
[Round "5.1"]
[White "Hak, David"]
[Black "Jun, Rudolf"]
[Result "1/2-1/2"]
[TimeControl "90 min per 40 moves + 15 min + 30 sec / move from move 1"]
[WhiteFideId "377007"]
[BlackFideId "376612"]
[WhiteElo "2253"]
[BlackElo "2260"]

1. e4 {[%clk 01:30:31]} {[%emt 00:00:28]} c5 {[%clk 01:30:51]} {[%emt
00:00:10]} 2. Nf3 {[%clk 01:30:45]} {[%emt 00:00:16]} Nc6 {[%clk 01:31:14]}
{[%emt 00:00:07]} 3. d4 {[%clk 01:31:08]} {[%emt 00:00:07]} cxd4 {[%clk
01:31:42]} {[%emt 00:00:02]} 4. Nxd4 {[%clk 01:31:28]} {[%emt 00:00:10]} Nf6
{[%clk 01:32:07]} {[%emt 00:00:05]} 5. Nc3 {[%clk 01:31:48]} {[%emt 00:00:11]}
e5 {[%clk 01:32:30]} {[%emt 00:00:06]} 6. Ndb5 {[%clk 01:32:09]} {[%emt
00:00:09]} d6 {[%clk 01:32:58]} {[%emt 00:00:02]} 7. Nd5 {[%clk 01:32:22]}
{[%emt 00:00:16]} Nxd5 {[%clk 01:33:26]} {[%emt 00:00:03]} 8. exd5 {[%clk
01:32:44]} {[%emt 00:00:08]} Ne7 {[%clk 01:33:51]} {[%emt 00:00:05]} 9. c3
{[%clk 01:33:06]} {[%emt 00:00:09]} Nf5 {[%clk 01:34:10]} {[%emt 00:00:10]} 10.
a4 {[%clk 01:33:26]} {[%emt 00:00:10]} Be7 {[%clk 01:24:35]} {[%emt 00:10:04]}
11. Bd3 {[%clk 01:32:26]} {[%emt 00:01:32]} O-O {[%clk 01:22:14]} {[%emt
00:02:50]} 12. O-O {[%clk 01:31:41]} {[%emt 00:01:15]} g6 {[%clk 01:15:18]}
{[%emt 00:07:26]} 13. Kh1 {[%clk 01:31:35]} {[%emt 00:00:36]} Re8 {[%clk
01:10:39]} {[%emt 00:05:09]} 14. f4 {[%clk 01:26:57]} {[%emt 00:05:08]} a6
{[%clk 01:08:50]} {[%emt 00:02:20]} 15. Na3 {[%clk 01:26:29]} {[%emt 00:00:57]}
exf4 {[%clk 01:08:56]} {[%emt 00:00:23]} 16. Bxf4 {[%clk 01:26:42]} {[%emt
00:00:17]} Bg5 {[%clk 01:08:01]} {[%emt 00:01:25]} 17. Qd2 {[%clk 01:18:11]}
{[%emt 00:09:02]} Bxf4 {[%clk 00:58:00]} {[%emt 00:10:31]} 18. Qxf4 {[%clk
01:18:33]} {[%emt 00:00:08]} Qh4 {[%clk 00:53:47]} {[%emt 00:04:42]} 19. Qxh4
{[%clk 01:10:16]} {[%emt 00:08:48]} Nxh4 {[%clk 00:54:08]} {[%emt 00:00:09]} 20.
Nc4 {[%clk 01:10:30]} {[%emt 00:00:17]} Bf5 {[%clk 00:53:19]} {[%emt 00:01:18]}
21. Rad1 {[%clk 00:34:15]} {[%emt 00:36:44]} Rad8 {[%clk 00:49:09]} {[%emt
00:04:41]} 22. g3 {[%clk 00:28:39]} {[%emt 00:06:06]} Bxd3 {[%clk 00:49:37]}
{[%emt 00:00:03]} 23. Rxd3 {[%clk 00:29:00]} {[%emt 00:00:08]} Nf5 {[%clk
00:50:03]} {[%emt 00:00:04]} 24. g4 {[%clk 00:28:03]} {[%emt 00:01:27]} Nh6
{[%clk 00:50:31]} {[%emt 00:00:02]} 25. Ne3 {[%clk 00:21:50]} {[%emt 00:06:43]}
Re5 {[%clk 00:46:22]} {[%emt 00:04:38]} 26. h3 {[%clk 00:16:28]} {[%emt
00:05:53]} Kg7 {[%clk 00:45:51]} {[%emt 00:01:01]} 27. Kg2 {[%clk 00:13:20]}
{[%emt 00:03:38]} f5 {[%clk 00:41:51]} {[%emt 00:04:29]} 28. Kg3 {[%clk
00:11:05]} {[%emt 00:02:46]} fxg4 {[%clk 00:40:54]} {[%emt 00:01:27]} 29. hxg4
{[%clk 00:11:02]} {[%emt 00:00:33]} Nf7 {[%clk 00:38:51]} {[%emt 00:02:32]} 30.
Nc4 {[%clk 00:10:08]} {[%emt 00:01:25]} Re4 {[%clk 00:37:03]} {[%emt 00:02:17]}
31. Rf4 {[%clk 00:07:32]} {[%emt 00:03:07]} Re2 {[%clk 00:32:48]} {[%emt
00:04:44]} 32. Rd2 {[%clk 00:05:21]} {[%emt 00:02:43]} Re7 {[%clk 00:26:53]}
{[%emt 00:06:23]} 33. Na5 {[%clk 00:02:47]} {[%emt 00:03:05]} Ng5 {[%clk
00:27:20]} {[%emt 00:00:03]} 34. Kg2 {[%clk 00:02:21]} {[%emt 00:00:55]} Rdd7
{[%clk 00:23:32]} {[%emt 00:04:19]} 35. Rb4 {[%clk 00:01:51]} {[%emt 00:00:59]}
h5 {[%clk 00:22:40]} {[%emt 00:01:22]} 36. gxh5 {[%clk 00:01:34]} {[%emt
00:00:48]} gxh5 {[%clk 00:23:09]} {[%emt 00:00:01]} 37. Rf2 {[%clk 00:01:03]}
{[%emt 00:01:01]} Ne4 {[%clk 00:22:41]} {[%emt 00:00:58]} 38. Re2 {[%clk
00:01:02]} {[%emt 00:00:31]} Nc5 {[%clk 00:22:34]} {[%emt 00:00:37]} 39. Rxe7+
{[%clk 00:01:17]} {[%emt 00:00:15]} Rxe7 {[%clk 00:23:03]} 40. Rb6 {[%clk
00:01:02]} {[%emt 00:00:45]} Nxa4 {[%clk 00:21:35]} {[%emt 00:01:59]} 41. Rxb7
{[%clk 00:10:06]} {[%emt 00:06:56]} Rxb7 {[%clk 00:37:13]} {[%emt 00:00:22]} 42.
Nxb7 {[%clk 00:10:34]} {[%emt 00:00:02]} Kf6 {[%clk 00:37:09]} {[%emt
00:00:33]} 43. c4 {[%clk 00:08:39]} {[%emt 00:02:27]} Nxb2 {[%clk 00:35:54]}
{[%emt 00:01:45]} 44. Nxd6 {[%clk 00:07:33]} {[%emt 00:01:36]} Ke5 {[%clk
00:35:54]} {[%emt 00:00:29]} 45. Nf7+ {[%clk 00:06:56]} {[%emt 00:01:07]} Kf6
{[%clk 00:36:15]} {[%emt 00:00:09]} 1/2-1/2

[Event "Polofinale MCR junioru 2023"]
[Site "Czech Republic"]
[Date "2023.11.14"]
[Round "5.2"]
[White "Hurtik, Matej"]
[Black "Seidl, Jan"]
[Result "0-1"]
[TimeControl "90 min per 40 moves + 15 min + 30 sec / move from move 1"]
[WhiteFideId "397997"]
[BlackFideId "23714522"]
[WhiteElo "2131"]
[BlackElo "2224"]

1. e4 {[%clk 01:24:17]} {[%emt 00:06:28]} c6 {[%clk 01:30:57]} {[%emt
00:00:17]} 2. d4 {[%clk 01:24:34]} {[%emt 00:00:14]} d5 {[%clk 01:31:23]}
{[%emt 00:00:04]} 3. e5 {[%clk 01:24:54]} {[%emt 00:00:09]} Bf5 {[%clk
01:31:46]} {[%emt 00:00:06]} 4. Nc3 {[%clk 01:24:42]} {[%emt 00:00:43]} e6
{[%clk 01:31:50]} {[%emt 00:00:27]} 5. g4 {[%clk 01:25:01]} {[%emt 00:00:10]}
Bg6 {[%clk 01:32:08]} {[%emt 00:00:13]} 6. Nge2 {[%clk 01:25:24]} {[%emt
00:00:06]} c5 {[%clk 01:32:25]} {[%emt 00:00:14]} 7. h4 {[%clk 01:23:46]}
{[%emt 00:02:07]} h5 {[%clk 01:32:19]} {[%emt 00:00:37]} 8. Nf4 {[%clk
01:24:03]} {[%emt 00:00:13]} Bh7 {[%clk 01:32:41]} {[%emt 00:00:08]} 9. Bb5+
{[%clk 01:24:06]} {[%emt 00:00:27]} Nc6 {[%clk 01:23:34]} {[%emt 00:09:38]} 10.
Nxh5 {[%clk 01:24:28]} {[%emt 00:00:07]} cxd4 {[%clk 01:23:58]} {[%emt
00:00:06]} 11. Qxd4 {[%clk 01:22:50]} {[%emt 00:02:08]} Nge7 {[%clk 01:18:43]}
{[%emt 00:05:45]} 12. Bg5 {[%clk 01:19:39]} {[%emt 00:03:39]} a6 {[%clk
01:18:24]} {[%emt 00:00:52]} 13. Bxc6+ {[%clk 01:16:12]} {[%emt 00:03:57]} Nxc6
{[%clk 01:18:14]} {[%emt 00:00:39]} 14. Qd2 {[%clk 01:04:03]} {[%emt 00:12:37]}
Qb6 {[%clk 01:10:28]} {[%emt 00:08:18]} 15. O-O-O {[%clk 01:00:46]} {[%emt
00:03:47]} d4 {[%clk 01:01:36]} {[%emt 00:09:22]} 16. Rhe1 {[%clk 00:48:04]}
{[%emt 00:13:12]} Nb4 {[%clk 00:53:09]} {[%emt 00:08:57]} 17. a3 {[%clk
00:38:06]} {[%emt 00:10:28]} Nxc2 {[%clk 00:49:17]} {[%emt 00:04:21]} 18. Ne4
{[%clk 00:38:26]} {[%emt 00:00:11]} Bxe4 {[%clk 00:44:38]} {[%emt 00:05:09]} 19.
Rxe4 {[%clk 00:36:45]} {[%emt 00:02:11]} Rc8 {[%clk 00:42:55]} {[%emt
00:02:13]} 20. Qxc2 {[%clk 00:29:51]} {[%emt 00:07:25]} Rxc2+ {[%clk 00:43:16]}
{[%emt 00:00:08]} 21. Kxc2 {[%clk 00:30:15]} {[%emt 00:00:06]} Qc6+ {[%clk
00:41:23]} {[%emt 00:02:23]} 22. Kd3 {[%clk 00:30:36]} {[%emt 00:00:08]} Be7
{[%clk 00:28:53]} {[%emt 00:13:01]} 23. Nxg7+ {[%clk 00:24:06]} {[%emt
00:07:01]} Kf8 {[%clk 00:29:08]} {[%emt 00:00:14]} 24. Bf6 {[%clk 00:23:46]}
{[%emt 00:00:50]} Rxh4 {[%clk 00:22:47]} {[%emt 00:06:52]} 25. Bxh4 {[%clk
00:18:06]} {[%emt 00:06:10]} Bxh4 {[%clk 00:23:12]} {[%emt 00:00:04]} 26. Nh5
{[%clk 00:17:51]} {[%emt 00:00:44]} Bxf2 {[%clk 00:22:57]} {[%emt 00:00:46]} 27.
Nf6 {[%clk 00:15:45]} {[%emt 00:02:36]} Qa4 {[%clk 00:18:19]} {[%emt 00:05:09]}
28. Ke2 {[%clk 00:13:25]} {[%emt 00:02:50]} Kg7 {[%clk 00:05:42]} {[%emt
00:13:07]} 29. Rh1 {[%clk 00:11:45]} {[%emt 00:02:08]} Qc2+ {[%clk 00:04:54]}
{[%emt 00:01:18]} 30. Kf3 {[%clk 00:08:28]} {[%emt 00:03:48]} Be3 {[%clk
00:05:15]} {[%emt 00:00:10]} 31. Rf1 {[%clk 00:03:41]} {[%emt 00:05:16]} Qd3
{[%clk 00:04:55]} {[%emt 00:00:49]} 32. Rh1 {[%clk 00:01:58]} {[%emt 00:02:14]}
Kg6 {[%clk 00:04:15]} {[%emt 00:01:10]} 33. Re1 {[%clk 00:00:32]} {[%emt
00:01:56]} Bd2+ {[%clk 00:04:09]} {[%emt 00:00:37]} 34. Kf2 {[%clk 00:00:32]}
{[%emt 00:00:30]} Bxe1+ {[%clk 00:04:33]} {[%emt 00:00:06]} 35. Rxe1 {[%clk
00:00:33]} {[%emt 00:00:29]} Qc2+ {[%clk 00:04:51]} {[%emt 00:00:11]} 36. Kf3
{[%clk 00:00:32]} {[%emt 00:00:31]} d3 {[%clk 00:04:09]} {[%emt 00:01:12]} 37.
Rh1 {[%emt 00:00:39]} 0-1

[Event "Polofinale MCR junioru 2023"]
[Site "Czech Republic"]
[Date "2023.11.14"]
[Round "5.3"]
[White "Bokhnak, Timofey"]
[Black "Skypala, Ondrej"]
[Result "1/2-1/2"]
[TimeControl "90 min per 40 moves + 15 min + 30 sec / move from move 1"]
[WhiteFideId "14172976"]
[BlackFideId "366285"]
[WhiteElo "2210"]
[BlackElo "2159"]

1. e4 {[%clk 01:30:50]} {[%emt 00:00:10]} e6 {[%clk 01:30:55]} {[%emt
00:00:06]} 2. d4 {[%clk 01:31:11]} {[%emt 00:00:08]} d5 {[%clk 01:31:22]}
{[%emt 00:00:04]} 3. e5 {[%clk 01:31:33]} {[%emt 00:00:07]} c5 {[%clk
01:31:49]} {[%emt 00:00:03]} 4. c3 {[%clk 01:32:00]} {[%emt 00:00:04]} Nc6
{[%clk 01:32:16]} {[%emt 00:00:03]} 5. Nf3 {[%clk 01:32:25]} {[%emt 00:00:04]}
Bd7 {[%clk 01:32:43]} {[%emt 00:00:03]} 6. Bd3 {[%clk 01:32:29]} {[%emt
00:00:25]} cxd4 {[%clk 01:33:09]} {[%emt 00:00:05]} 7. cxd4 {[%clk 01:32:55]}
{[%emt 00:00:05]} Qb6 {[%clk 01:33:34]} {[%emt 00:00:04]} 8. O-O {[%clk
01:32:31]} {[%emt 00:00:54]} Nxd4 {[%clk 01:34:00]} {[%emt 00:00:04]} 9. Nbd2
{[%clk 01:32:43]} {[%emt 00:00:19]} Nc6 {[%clk 01:33:12]} {[%emt 00:01:18]} 10.
Nb3 {[%clk 01:30:59]} {[%emt 00:02:14]} h6 {[%clk 01:33:32]} {[%emt 00:00:10]}
11. Be3 {[%clk 01:30:15]} {[%emt 00:01:12]} Qc7 {[%clk 01:27:28]} {[%emt
00:06:35]} 12. Rc1 {[%clk 01:29:21]} {[%emt 00:01:25]} a6 {[%clk 01:26:49]}
{[%emt 00:01:09]} 13. Nc5 {[%clk 01:26:52]} {[%emt 00:02:58]} Nge7 {[%clk
01:18:36]} {[%emt 00:08:43]} 14. b4 {[%clk 01:18:38]} {[%emt 00:08:44]} Nc8
{[%clk 01:16:40]} {[%emt 00:02:26]} 15. a4 {[%clk 01:16:12]} {[%emt 00:02:57]}
Bxc5 {[%clk 01:16:56]} {[%emt 00:00:14]} 16. Rxc5 {[%clk 01:11:27]} {[%emt
00:05:14]} Qb8 {[%clk 01:15:04]} {[%emt 00:02:23]} 17. b5 {[%clk 01:07:11]}
{[%emt 00:04:45]} axb5 {[%clk 01:15:26]} {[%emt 00:00:08]} 18. axb5 {[%clk
01:07:37]} {[%emt 00:00:04]} Nxe5 {[%clk 01:15:01]} {[%emt 00:00:55]} 19. Bf4
{[%clk 01:06:03]} {[%emt 00:02:03]} Nxf3+ {[%clk 01:11:48]} {[%emt 00:03:44]}
20. Qxf3 {[%clk 01:06:28]} {[%emt 00:00:05]} Qa7 {[%clk 01:09:52]} {[%emt
00:02:27]} 21. Rfc1 {[%clk 00:57:54]} {[%emt 00:09:03]} Ne7 {[%clk 01:06:33]}
{[%emt 00:03:48]} 22. Qg3 {[%clk 00:57:42]} {[%emt 00:00:43]} O-O {[%clk
00:58:18]} {[%emt 00:08:45]} 23. Bxh6 {[%clk 00:56:40]} {[%emt 00:01:32]} Ng6
{[%clk 00:58:44]} {[%emt 00:00:04]} 24. Be3 {[%clk 00:54:39]} {[%emt 00:02:31]}
Qa3 {[%clk 00:56:51]} {[%emt 00:02:24]} 25. Bxg6 {[%clk 00:48:08]} {[%emt
00:07:00]} fxg6 {[%clk 00:57:04]} {[%emt 00:00:17]} 26. Qxg6 {[%clk 00:48:09]}
{[%emt 00:00:29]} Qb2 {[%clk 00:56:18]} {[%emt 00:01:16]} 27. Qg4 {[%clk
00:44:45]} {[%emt 00:03:53]} Ra1 {[%clk 00:55:27]} {[%emt 00:01:22]} 28. b6
{[%clk 00:40:27]} {[%emt 00:04:49]} Rxc1+ {[%clk 00:54:22]} {[%emt 00:01:34]}
29. Rxc1 {[%clk 00:40:51]} {[%emt 00:00:04]} Rxf2 {[%clk 00:53:42]} {[%emt
00:01:12]} 30. Re1 {[%clk 00:32:59]} {[%emt 00:08:22]} Rf7 {[%clk 00:52:47]}
{[%emt 00:01:25]} 31. Bd4 {[%clk 00:31:54]} {[%emt 00:01:34]} Qd2 {[%clk
00:53:12]} {[%emt 00:00:06]} 32. Ra1 {[%clk 00:28:32]} {[%emt 00:03:52]} Qh6
{[%clk 00:53:07]} {[%emt 00:00:35]} 33. Qg3 {[%clk 00:27:42]} {[%emt 00:01:19]}
Qf4 {[%clk 00:51:02]} {[%emt 00:02:36]} 34. Ra8+ {[%clk 00:20:34]} {[%emt
00:07:39]} 1/2-1/2

[Event "Polofinale MCR junioru 2023"]
[Site "Czech Republic"]
[Date "2023.11.14"]
[Round "5.4"]
[White "Vojta, Jakub"]
[Black "Lihotsky, Lukas"]
[Result "1/2-1/2"]
[TimeControl "90 min per 40 moves + 15 min + 30 sec / move from move 1"]
[WhiteFideId "382515"]
[BlackFideId "23727004"]
[WhiteElo "2267"]
[BlackElo "2100"]

1. c4 {[%clk 01:30:48]} {[%emt 00:00:12]} e6 {[%clk 01:30:54]} {[%emt
00:00:07]} 2. Nf3 {[%clk 01:31:08]} {[%emt 00:00:09]} d5 {[%clk 01:31:18]}
{[%emt 00:00:06]} 3. g3 {[%clk 01:31:34]} {[%emt 00:00:04]} Nf6 {[%clk
01:31:44]} {[%emt 00:00:04]} 4. Bg2 {[%clk 01:32:00]} {[%emt 00:00:04]} dxc4
{[%clk 01:32:10]} {[%emt 00:00:05]} 5. Qa4+ {[%clk 01:31:38]} {[%emt 00:00:51]}
Bd7 {[%clk 01:32:24]} {[%emt 00:00:16]} 6. Qxc4 {[%clk 01:32:01]} {[%emt
00:00:06]} c5 {[%clk 01:32:50]} {[%emt 00:00:05]} 7. Ne5 {[%clk 01:29:33]}
{[%emt 00:02:57]} Qc8 {[%clk 01:32:57]} {[%emt 00:00:23]} 8. O-O {[%clk
01:29:18]} {[%emt 00:00:46]} Nc6 {[%clk 01:30:17]} {[%emt 00:03:10]} 9. f4
{[%clk 01:24:57]} {[%emt 00:04:51]} Be7 {[%clk 01:27:03]} {[%emt 00:03:44]} 10.
b3 {[%clk 01:22:43]} {[%emt 00:02:44]} O-O {[%clk 01:24:45]} {[%emt 00:02:48]}
11. Bb2 {[%clk 01:19:51]} {[%emt 00:03:21]} Rd8 {[%clk 01:13:16]} {[%emt
00:12:00]} 12. e3 {[%clk 01:03:41]} {[%emt 00:16:40]} Qc7 {[%clk 01:03:56]}
{[%emt 00:09:50]} 13. Nc3 {[%clk 00:57:27]} {[%emt 00:06:43]} a6 {[%clk
01:01:28]} {[%emt 00:02:59]} 14. Qe2 {[%clk 00:53:20]} {[%emt 00:04:37]} Rac8
{[%clk 00:56:21]} {[%emt 00:05:36]} 15. Rac1 {[%clk 00:52:29]} {[%emt
00:01:22]} Be8 {[%clk 00:48:23]} {[%emt 00:08:28]} 16. Rfd1 {[%clk 00:49:44]}
{[%emt 00:03:15]} Nxe5 {[%clk 00:34:51]} {[%emt 00:14:02]} 17. fxe5 {[%clk
00:50:04]} {[%emt 00:00:10]} Nd7 {[%clk 00:35:14]} {[%emt 00:00:07]} 18. d4
{[%clk 00:49:12]} {[%emt 00:01:21]} Qb8 {[%clk 00:33:05]} {[%emt 00:02:40]} 19.
Ne4 {[%clk 00:40:19]} {[%emt 00:09:23]} cxd4 {[%clk 00:32:09]} {[%emt
00:01:26]} 20. exd4 {[%clk 00:40:42]} {[%emt 00:00:07]} Nb6 {[%clk 00:27:20]}
{[%emt 00:05:18]} 21. h4 {[%clk 00:37:00]} {[%emt 00:04:13]} Nd5 {[%clk
00:26:30]} {[%emt 00:01:20]} 22. Kh2 {[%clk 00:36:21]} {[%emt 00:01:09]} Rxc1
{[%clk 00:21:54]} {[%emt 00:05:07]} 23. Bxc1 {[%clk 00:33:36]} {[%emt
00:03:14]} Qc7 {[%clk 00:19:55]} {[%emt 00:02:28]} 24. Bg5 {[%clk 00:32:45]}
{[%emt 00:01:22]} h6 {[%clk 00:19:25]} {[%emt 00:01:00]} 25. Bxe7 {[%clk
00:32:47]} {[%emt 00:00:28]} Qxe7 {[%clk 00:19:49]} {[%emt 00:00:06]} 26. Rc1
{[%clk 00:30:24]} {[%emt 00:02:53]} Qb4 {[%clk 00:19:25]} {[%emt 00:00:54]} 27.
Rc4 {[%clk 00:25:56]} {[%emt 00:04:58]} Qa5 {[%clk 00:17:55]} {[%emt 00:01:58]}
28. Rc5 {[%clk 00:25:37]} {[%emt 00:00:51]} Qb4 {[%clk 00:17:33]} {[%emt
00:00:51]} 29. Qf2 {[%clk 00:21:58]} {[%emt 00:04:08]} Bc6 {[%clk 00:14:10]}
{[%emt 00:03:55]} 30. Nd6 {[%clk 00:21:50]} {[%emt 00:00:38]} Rf8 {[%clk
00:14:24]} {[%emt 00:00:16]} 31. Rc4 {[%clk 00:16:55]} {[%emt 00:05:25]} Qb6
{[%clk 00:13:16]} {[%emt 00:01:36]} 32. Bh3 {[%clk 00:09:41]} {[%emt 00:07:45]}
Nc7 {[%clk 00:10:32]} {[%emt 00:03:14]} 33. Rc5 {[%clk 00:05:25]} {[%emt
00:04:47]} Nb5 {[%clk 00:07:16]} {[%emt 00:03:45]} 34. Nxb5 {[%clk 00:02:37]}
{[%emt 00:03:19]} 1/2-1/2